bitfinex/quotes_ETHUSD_20220226
["timestamp","ask_amount","ask_price","bid_price","bid_amount"]
[1645897319045,0.00508361,2794.5,2794.2,0.00746261]
[1645897320051,0.00346783,2794.8,2794.2,0.00746261]
[1645897320295,0.00508366,2794.5,2794.2,0.00746261]
[1645897321298,0.00346783,2794.8,2794.2,0.00746261]
[1645897321498,0.00508366,2794.5,2794.2,0.00746261]
[1645897322401,0.00346783,2794.8,2794.2,0.00746261]
[1645897322607,0.67456883,2794.9,2794.2,0.00746261]
[1645897322900,0.00508366,2794.5,2794.2,0.00746261]
[1645897323707,0.00346783,2794.8,2794.2,0.00746261]
[1645897323910,0.00508366,2794.5,2794.2,0.90237261]
[1645897324145,0.00508366,2794.5,2794.3,4.3948811]
[1645897324543,0.00508366,2794.5,2794.4,1.15947541]
[1645897324745,0.00508366,2794.5,2794.2,0.00746261]
[1645897324948,0.00346783,2794.9,2794.2,0.00746261]
[1645897325155,0.00508356,2794.6,2794.2,0.00746261]
[1645897326159,0.00346783,2794.9,2794.2,0.00746261]
[1645897326160,0.67456883,2794.7,2794.2,0.00746261]
[1645897326351,0.14656783,2794.9,2794.2,0.00746261]
[1645897326352,0.00508361,2794.5,2794.2,0.00746261]
[1645897327351,0.67456883,2794.6,2794.2,0.00746261]
[1645897327551,0.00508366,2794.5,2794.2,0.00746261]
[1645897328187,0.67456883,2794.4,2794.2,0.00746261]
[1645897328686,0.81766883,2794.4,2794.2,0.00746261]
[1645897328887,0.41591943,2794.3,2794.2,0.00746261]
[1645897329088,1.09048826,2794.4,2794.2,0.00746261]
[1645897329895,1.09557198,2794.4,2794.2,0.00746261]
[1645897330095,1.39557198,2794.4,2794.2,0.00746261]
[1645897330299,1.23358826,2794.3,2794.2,0.00746261]
[1645897331547,0.55901943,2794.3,2794.2,0.00746261]
[1645897331740,0.3582,2794.1,2792.6,1.0000015]
[1645897331944,0.012108,2793.6,2792.7,1.05173536]
[1645897332144,17.01288785,2792.8,2792.1,0.25]
[1645897332346,5.0,2792.4,2791.6,7.33533148]
[1645897332544,3.5,2792.3,2791.6,7.33533148]
[1645897332740,3.8,2792.3,2791.6,7.33533148]
[1645897332949,0.3971,2792.4,2791.6,8.54385602]
[1645897333144,3.2398,2793.0,2791.6,1.20852454]
[1645897333343,6.7398,2793.0,2791.8,7.36]
[1645897333544,3.2398,2793.0,2791.8,7.36]
[1645897333743,3.2398,2793.0,2791.9,0.00289244]
[1645897333943,3.2398,2793.0,2792.3,1.01448089]
[1645897334142,3.5,2793.2,2792.3,1.01448089]
[1645897334344,3.1972,2793.3,2792.3,1.01448089]
[1645897334743,3.1972,2793.3,2792.6,0.00508895]
[1645897334945,1.1972,2793.3,2792.6,0.00508895]
[1645897335806,1.1972,2793.3,2792.4,7.7182]
[1645897335807,1.1972,2793.3,2792.7,0.1431]
[1645897336002,1.1972,2793.3,2792.8,0.00508874]
[1645897336202,3.28048722,2793.6,2792.9,1.0]
[1645897336403,3.28048722,2793.6,2792.8,0.00508874]
[1645897336820,3.28048722,2793.6,2793.2,1.43084629]
[1645897337003,4.7879,2794.1,2793.2,1.43084629]
[1645897337204,0.00508742,2793.6,2793.2,1.43084629]
[1645897338307,1.1964,2794.1,2793.2,1.43084629]
[1645897338506,0.00508758,2793.6,2793.2,1.43455789]
[1645897338809,0.00508758,2793.6,2793.2,1.43084629]
[1645897339259,0.5013,2794.3,2793.2,1.43084629]
[1645897339463,0.5013,2794.3,2793.2,1.43455789]
[1645897339661,0.00476759,2793.6,2793.2,1.43455789]
[1645897339863,0.00476759,2793.6,2793.2,1.43084629]
[1645897340564,0.1431,2794.3,2793.2,1.43084629]
[1645897340790,0.00476759,2793.6,2793.2,1.79275789]
[1645897340965,0.00476759,2793.6,2793.4,0.3582]
[1645897341564,0.00476759,2793.6,2793.5,0.6591]
[1645897341766,4.411,2794.6,2793.5,0.6591]
[1645897341967,4.411,2794.6,2793.6,0.00080272]
[1645897341968,0.01906614,2794.3,2793.6,0.00080272]
[1645897342983,5.08604638,2794.6,2793.6,0.00080272]
[1645897343182,5.08604638,2794.6,2793.8,1.05939853]
[1645897343391,0.67504638,2794.6,2793.6,0.00080272]
[1645897343790,0.67504638,2794.5,2793.6,0.00080272]
[1645897343992,0.67504638,2794.6,2793.6,0.00080272]
[1645897344191,0.67504638,2794.5,2793.6,0.00080272]
[1645897344394,0.00190532,2794.2,2793.6,0.00080272]
[1645897344592,0.00190532,2794.2,2793.7,1.02174444]
[1645897345392,0.67504638,2794.5,2793.7,1.02174444]
[1645897345592,0.00479233,2794.1,2793.7,1.02174444]
[1645897346640,0.67504638,2794.5,2793.7,1.02174444]
[1645897346841,0.00479239,2794.0,2793.7,1.02174444]
[1645897347742,0.67504638,2794.5,2793.7,1.02174444]
[1645897347942,0.00478716,2794.0,2793.6,0.00080272]
[1645897348945,0.67504638,2794.6,2793.6,0.00080272]
[1645897349143,0.00478721,2793.9,2793.6,1.31997802]
[1645897350147,3.08520383,2794.7,2793.6,1.31997802]
[1645897350148,0.67504638,2794.5,2793.6,1.31997802]
[1645897350398,0.67504638,2794.5,2793.6,0.00080272]
[1645897350399,0.00478726,2793.9,2793.6,0.00080272]
[1645897351398,0.67504638,2794.6,2793.6,0.00080272]
[1645897351602,0.00478762,2793.9,2793.6,0.00080272]
[1645897352202,0.00478762,2793.9,2793.7,1.39805066]
[1645897352603,0.67504638,2794.6,2793.7,1.39805066]
[1645897352804,1.29959825,2794.6,2793.7,1.39805066]
[1645897353003,0.00478757,2793.9,2793.7,1.39805066]
[1645897353809,0.67504638,2794.6,2793.7,1.39805066]
[1645897354035,0.00478757,2793.9,2793.7,1.39805066]
[1645897354243,0.62451977,2793.8,2793.6,0.89586272]
[1645897355040,0.67504638,2794.5,2793.6,0.89586272]
[1645897355240,6.58520383,2794.7,2793.7,1.16418127]
[1645897355241,0.00478765,2793.8,2793.7,1.16418127]
[1645897355441,0.00478765,2793.8,2793.7,2.04092589]
[1645897356243,0.67504638,2794.6,2793.7,2.04092589]
[1645897356451,0.67504638,2794.6,2793.7,1.16418127]
[1645897356452,0.00478759,2793.9,2793.7,1.16418127]
[1645897356846,0.00478759,2793.9,2793.6,0.89586272]
[1645897357249,0.62457625,2793.8,2793.6,0.89586272]
[1645897357446,0.67504638,2794.5,2793.6,0.89586272]
[1645897357650,0.00478759,2793.9,2793.6,0.89586272]
[1645897357906,0.62464823,2793.8,2793.6,0.89586272]
[1645897358804,0.00478765,2793.8,2793.6,0.89586272]
[1645897359206,0.00478765,2793.8,2793.6,0.00080272]
[1645897359406,0.62476329,2793.7,2793.6,0.00080272]
[1645897360006,0.0047877,2793.8,2793.6,0.00080272]
[1645897360207,0.62476329,2793.7,2793.6,0.87791099]
[1645897360405,0.62476329,2793.7,2793.6,0.00080272]
[1645897360606,0.62476329,2793.7,2793.6,0.87790846]
[1645897361005,0.62476329,2793.7,2793.6,0.00080272]
[1645897361406,0.62476329,2793.7,2793.6,0.87791624]
[1645897361660,0.62476329,2793.7,2793.6,0.00080272]
[1645897362456,0.00056862,2793.6,2793.3,7.1597]
[1645897364660,1.92519371,2794.2,2793.6,1.16381805]
[1645897364661,1.23006862,2794.2,2793.6,1.16381805]
[1645897364856,0.00478765,2793.7,2793.6,1.16381805]
[1645897365305,0.00478765,2793.7,2793.3,7.163411]
[1645897365494,0.00478765,2793.7,2793.6,1.0]
[1645897365699,0.67504638,2794.3,2793.3,7.1597]
[1645897365902,0.67504638,2794.3,2793.3,7.163411]
[1645897366100,0.69419386,2794.2,2793.7,1.0]
[1645897366299,0.69419386,2794.2,2793.3,7.163411]
[1645897366908,0.67504638,2794.2,2793.3,7.163411]
[1645897367099,0.0047876,2793.9,2793.3,7.163411]
[1645897368299,0.67504638,2794.2,2793.3,7.163411]
[1645897368503,0.00478776,2793.7,2793.3,7.163411]
[1645897368700,0.00478776,2793.7,2793.3,7.1597]
[1645897369342,0.67504638,2794.1,2793.3,7.1597]
[1645897369547,0.00502529,2793.7,2793.3,7.1597]
[1645897370141,0.00502529,2793.7,2793.5,1.29640142]
[1645897370343,0.00502529,2793.7,2793.3,7.1597]
[1645897370543,0.67504638,2794.1,2793.3,7.1597]
[1645897370945,0.00502537,2793.7,2793.3,7.1597]
[1645897371346,0.00502537,2793.7,2793.4,1.28888746]
[1645897371749,0.67504638,2794.1,2793.4,1.28888746]
[1645897371949,0.00502533,2793.7,2793.4,1.28888746]
[1645897372151,0.00502533,2793.7,2793.3,7.1597]
[1645897372987,0.67504638,2794.0,2793.3,7.1597]
[1645897373186,0.00508748,2793.7,2793.3,7.1597]
[1645897374188,3.5,2793.9,2793.3,7.1597]
[1645897374390,0.00508748,2793.7,2793.3,7.1597]
[1645897375390,0.67504638,2794.1,2793.3,7.1597]
[1645897375593,0.67504638,2794.1,2793.3,7.163411]
[1645897375594,0.00508748,2793.7,2793.3,7.163411]
[1645897375791,0.00508748,2793.7,2793.3,7.1597]
[1645897376679,0.67504638,2794.1,2793.3,7.1597]
[1645897376874,0.00508748,2793.7,2793.3,7.163411]
[1645897377174,0.00508748,2793.7,2793.3,7.1597]
[1645897377774,0.67504638,2794.0,2793.3,7.1597]
[1645897377978,0.00508748,2793.7,2793.3,7.163411]
[1645897378176,0.00508748,2793.7,2793.3,7.1597]
[1645897378778,1.24064645,2794.2,2793.4,12.0]
[1645897378979,1.24064645,2794.2,2793.6,0.89506]
[1645897378980,1.2203,2794.2,2793.6,0.89506]
[1645897379176,0.67504638,2794.4,2793.6,0.89506]
[1645897379374,0.00508748,2793.7,2793.6,0.89506]
[1645897380176,0.67504638,2794.3,2793.6,0.89506]
[1645897380405,0.67504638,2794.3,2793.9,1.37250149]
[1645897380605,0.67504638,2794.2,2793.7,0.89501]
[1645897380809,0.67504638,2794.4,2793.7,0.89501]
[1645897381008,0.6838306,2794.5,2793.7,0.89501]
[1645897381404,0.67504638,2794.6,2793.7,0.89501]
[1645897381610,0.00219661,2794.2,2793.9,0.89497]
[1645897381809,0.00219661,2794.2,2794.0,1.09478216]
[1645897382010,0.00219661,2794.2,2793.9,0.89497]
[1645897382411,0.00111741,2794.2,2793.9,0.89497]
[1645897382618,0.67504638,2794.5,2794.0,0.84510444]
[1645897382909,0.00508709,2794.2,2794.0,0.84510444]
[1645897383110,0.66282454,2794.1,2794.0,0.84510444]
[1645897383309,0.66282454,2794.1,2794.0,1.98132765]
[1645897383510,0.66282454,2794.1,2794.0,1.84510444]
[1645897383910,0.66282454,2794.1,2794.0,0.84510444]
[1645897384155,0.66282454,2794.1,2793.8,0.84510444]
[1645897384350,0.66282454,2794.0,2793.9,0.84511377]
[1645897384554,0.00188318,2794.2,2793.9,0.84511377]
[1645897384752,0.00188318,2794.2,2794.0,0.84511377]
[1645897384954,0.67504638,2794.4,2794.1,0.84509091]
[1645897385157,0.66282454,2794.3,2793.9,1.17909555]
[1645897385353,0.66470772,2794.2,2794.0,1.0]
[1645897385551,0.66470772,2794.2,2794.1,0.84506043]
[1645897385552,0.00188318,2794.2,2794.1,0.84506043]
[1645897385753,0.00188318,2794.2,2794.0,1.0]
[1645897385951,0.00188318,2794.2,2794.1,0.84503311]
[1645897386151,0.66282454,2794.3,2794.0,1.0]
[1645897386351,0.67504638,2794.4,2794.1,0.84499284]
[1645897386551,0.67504638,2794.4,2794.0,1.0]
[1645897386552,0.00188318,2794.2,2794.0,1.0]
[1645897386755,0.00188318,2794.2,2794.1,0.8449702]
[1645897386954,0.00188318,2794.2,2794.0,1.0]
[1645897387153,0.00188318,2794.2,2794.1,0.84492449]
[1645897387355,0.67504638,2794.4,2793.9,1.0]
[1645897387556,0.67504638,2794.4,2794.0,0.84492213]
[1645897387815,0.00477743,2794.2,2794.1,0.84491296]
[1645897387998,0.66760197,2794.2,2794.0,0.84490317]
[1645897388199,0.66282454,2794.1,2794.0,1.0]
[1645897388399,0.66282454,2794.1,2794.0,1.84485594]
[1645897388601,0.66282454,2794.1,2793.9,1.0714685]
[1645897388801,0.66282454,2794.0,2793.5,7.35573644]
[1645897389001,0.66282454,2793.9,2793.6,0.84487324]
[1645897389201,0.00489518,2794.2,2793.6,0.84487324]
[1645897389402,0.66278452,2794.1,2793.6,0.84487324]
[1645897390005,0.66278452,2794.0,2793.6,2.14455544]
[1645897390206,0.66278452,2794.0,2793.7,0.84487324]
[1645897390415,0.67994159,2794.1,2793.8,0.84487324]
[1645897390609,0.67994159,2794.1,2793.5,1.0048963]
[1645897390808,1.3378309,2794.0,2793.6,0.84492761]
[1645897391205,1.3378309,2794.0,2793.7,0.84492761]
[1645897391405,1.3378309,2794.0,2793.5,0.00489626]
[1645897391654,0.66278452,2794.0,2793.6,0.84485104]
[1645897391855,0.66278452,2793.9,2793.6,0.84485104]
[1645897392053,0.66278452,2793.8,2793.6,0.84485104]
[1645897392256,4.16278452,2793.7,2793.6,0.84485104]
[1645897392455,0.66278452,2793.7,2793.6,0.84485104]
[1645897392856,0.66278452,2793.8,2793.6,0.84485104]
[1645897393058,0.66278452,2793.7,2793.6,0.84485104]
[1645897393555,1.3378309,2793.8,2793.6,0.84485104]
[1645897393753,1.3378309,2793.8,2793.5,0.00469592]
[1645897393952,1.3378309,2793.8,2793.6,0.82850745]
[1645897394160,1.4809309,2793.8,2793.5,0.00281389]
[1645897394354,4.8378309,2793.7,2793.5,0.00281389]
[1645897394555,0.66278452,2793.6,2793.4,0.82853358]
[1645897394753,0.66278452,2793.5,2793.4,0.82853358]
[1645897394955,3.5,2793.6,2793.4,0.82853358]
[1645897395156,0.66278452,2793.5,2793.3,7.1597]
[1645897395401,4.16278452,2793.5,2793.3,7.1597]
[1645897395605,0.66278452,2793.4,2793.3,7.1597]
[1645897396307,0.67504638,2793.5,2793.3,7.16418389]
[1645897396509,0.66278452,2793.4,2793.3,7.16418389]
[1645897396708,1.3378309,2793.6,2793.3,7.16418389]
[1645897397108,0.67504638,2793.5,2793.3,7.1597]
[1645897397308,0.66278452,2793.4,2793.3,7.1597]
[1645897397906,1.3378309,2793.6,2793.3,7.1597]
[1645897398112,0.66278452,2793.5,2793.3,7.1597]
[1645897398307,4.16278452,2793.4,2793.3,7.1597]
[1645897398909,0.66278452,2793.4,2793.3,7.1597]
[1645897399150,0.66278452,2793.5,2793.3,7.1597]
[1645897399352,0.66278452,2793.4,2793.3,7.1597]
[1645897399550,0.66278452,2793.4,2793.3,7.99608794]
[1645897399955,1.34290102,2793.8,2793.3,7.99608794]
[1645897400159,1.3378309,2793.7,2793.3,7.1597]
[1645897400358,0.66278452,2793.6,2793.3,7.1597]
[1645897400663,0.67504638,2793.7,2793.3,7.1597]
[1645897400664,0.66278452,2793.5,2793.3,7.1597]
[1645897400859,0.67504638,2793.7,2793.4,0.0050711]
[1645897401858,0.67504638,2793.7,2793.3,7.1597]
[1645897402060,0.67504638,2793.7,2793.4,0.00507104]
[1645897402460,1.34499138,2793.7,2793.4,0.00507104]
[1645897402890,0.669945,2793.6,2793.4,0.00507104]
[1645897403091,0.669945,2793.5,2793.3,7.1597]
[1645897403298,0.669945,2793.4,2793.3,7.1597]
[1645897403491,0.67504638,2793.7,2793.3,7.99594339]
[1645897403691,0.67504638,2793.7,2793.3,7.1597]
[1645897403897,1.35007874,2793.8,2793.3,7.1597]
[1645897404296,1.34499138,2793.8,2793.3,7.1597]
[1645897404502,1.34499138,2793.8,2793.4,0.00508812]
[1645897404503,0.67504638,2793.6,2793.4,0.00508812]
[1645897404696,0.669945,2793.5,2793.4,0.00508812]
[1645897405097,1.35007874,2793.8,2793.4,0.00508812]
[1645897405499,0.669945,2793.7,2793.3,7.1597]
[1645897405699,0.669945,2793.7,2793.3,7.16478822]
[1645897405700,0.669945,2793.6,2793.3,7.16478822]
[1645897405902,0.669945,2793.5,2793.3,7.16478822]
[1645897406298,0.669945,2793.4,2793.3,7.16478822]
[1645897406541,1.35007866,2793.8,2793.3,8.00104492]
[1645897406746,0.669945,2793.7,2793.3,7.1597]
[1645897407047,0.67504638,2793.8,2793.3,7.1597]
[1645897407048,0.669945,2793.6,2793.4,0.83624084]
[1645897407246,0.669945,2793.5,2793.4,0.83624084]
[1645897407447,0.669945,2793.7,2793.4,0.83624084]
[1645897407647,0.0050872,2793.8,2793.4,0.83624084]
[1645897407648,1.35007858,2793.8,2793.4,0.83624084]
[1645897407847,0.669945,2793.7,2793.4,0.83624084]
[1645897408048,0.669945,2793.6,2793.4,0.84132896]
[1645897408248,0.669945,2793.5,2793.4,0.00508812]
[1645897408454,0.669945,2793.7,2793.4,0.84132846]
[1645897408651,0.669945,2793.7,2793.4,0.00508812]
[1645897408853,0.669945,2793.7,2793.5,0.83624962]
[1645897409251,0.669945,2793.6,2793.3,7.1597]
[1645897409451,0.669945,2793.5,2793.4,0.84123694]
[1645897409650,0.669945,2793.5,2793.4,1.84123694]
[1645897409851,0.669945,2793.7,2793.4,1.84123694]
[1645897410053,0.669945,2793.7,2793.6,1.33077785]
[1645897410323,0.669945,2793.7,2793.6,2.16692667]
[1645897411513,0.669945,2793.7,2793.6,3.16692667]
[1645897411712,0.669945,2793.7,2793.6,3.1184475]
[1645897412315,0.669945,2793.7,2793.6,3.11840671]
[1645897412518,0.669945,2793.7,2793.6,2.28229868]
[1645897412719,0.669945,2793.7,2793.6,3.11844757]
[1645897412916,0.669945,2793.7,2793.6,2.28229868]
[1645897413116,0.669945,2793.7,2793.6,3.11844752]
[1645897413316,0.669945,2793.7,2793.6,2.28229868]
[1645897413516,0.669945,2793.7,2793.6,2.11844625]
[1645897413720,0.669945,2793.7,2793.6,2.28229868]
[1645897413918,0.669945,2793.7,2793.6,3.11844697]
[1645897414150,0.00442177,2793.8,2793.6,3.11840256]
[1645897414450,0.66964452,2793.7,2793.6,2.28229868]
[1645897415148,0.66964452,2793.7,2793.6,3.11840934]
[1645897415349,0.66964452,2793.7,2793.6,3.11840784]
[1645897415550,0.00442177,2793.8,2793.6,2.28229868]
[1645897415751,0.66964452,2793.7,2793.6,0.66876704]
[1645897415953,0.66964452,2793.7,2793.6,0.8361241]
[1645897416151,0.66964452,2793.7,2793.5,0.8361241]
[1645897416356,0.66964452,2793.7,2793.6,1.5041241]
[1645897416552,0.66964452,2793.7,2793.6,0.8361241]
[1645897417817,0.00442177,2793.8,2793.6,0.8361241]
[1645897418011,0.66964452,2793.7,2793.6,0.8361241]
[1645897418208,0.66964452,2793.7,2793.6,0.7361241]
[1645897418913,0.00451068,2793.8,2793.6,0.7361241]
[1645897419109,0.00451068,2793.8,2793.4,0.0045113]
[1645897419911,0.67504638,2794.0,2793.3,7.163411]
[1645897420109,0.00451064,2793.8,2793.4,0.00451127]
[1645897421110,0.67504638,2794.0,2793.3,7.163411]
[1645897421310,0.00451064,2793.8,2793.4,0.00451127]
[1645897422351,0.67504638,2794.0,2793.3,7.163411]
[1645897422551,0.00449871,2793.8,2793.4,0.00449933]
[1645897423453,0.67504638,2794.1,2793.3,8.19509152]
[1645897423853,0.00449871,2793.8,2793.4,0.00449933]
[1645897424055,0.00449871,2793.8,2793.6,0.668]
[1645897424650,0.67504638,2794.1,2793.6,0.668]
[1645897424851,0.00449876,2793.8,2793.6,0.668]
[1645897425904,0.67504638,2794.0,2793.6,0.668]
[1645897426106,0.00450037,2793.8,2793.6,0.668]
[1645897426713,0.00450037,2793.8,2793.7,0.668]
[1645897427210,0.67504638,2794.0,2793.7,0.668]
[1645897427410,0.00450032,2793.9,2793.7,0.668]
[1645897427610,0.00450032,2793.9,2793.4,0.00450104]
[1645897428412,0.67504638,2793.9,2793.3,7.163411]
[1645897428613,0.67504638,2793.9,2793.4,0.00450097]
[1645897428614,0.00450035,2793.8,2793.4,0.00450097]
[1645897428811,0.67954673,2793.8,2793.4,0.00450097]
[1645897429049,0.00450035,2793.8,2793.4,0.00450097]
[1645897429544,0.67504638,2793.9,2793.3,7.163411]
[1645897429744,0.68013035,2793.8,2793.4,0.00508467]
[1645897430747,0.67504638,2793.8,2793.3,7.163411]
[1645897430946,0.68013035,2793.8,2793.4,0.00508467]
[1645897431348,0.00508397,2793.8,2793.4,0.00508467]
[1645897431761,0.00508397,2793.8,2793.4,1.31575749]
[1645897431960,0.67504638,2794.0,2793.4,1.31067282]
[1645897432159,0.00508397,2793.8,2793.4,1.31575749]
[1645897432807,0.00508397,2793.8,2793.4,1.98375749]
[1645897433001,0.00508397,2793.8,2793.4,1.31067282]
[1645897433302,0.0050874,2793.8,2793.4,1.31576092]
[1645897434204,0.67504638,2794.1,2793.4,1.31067282]
[1645897434405,0.67504638,2794.1,2793.4,1.97867282]
[1645897434612,0.0050874,2793.8,2793.4,1.98376092]
[1645897434809,0.0050874,2793.8,2793.4,5.48376092]
[1645897435006,0.0050874,2793.8,2793.4,7.63221092]
[1645897435309,0.0050874,2793.8,2793.4,7.96421092]
[1645897435505,0.67504638,2794.3,2793.7,0.668]
[1645897435808,0.67504638,2794.5,2793.7,0.668]
[1645897436006,0.67504638,2794.5,2793.8,3.5]
[1645897436209,0.67504638,2794.5,2793.7,0.668]
[1645897436405,0.67504638,2794.5,2794.2,0.668]
[1645897436654,3.34044433,2794.6,2794.2,0.09864342]
[1645897436655,0.67504638,2794.6,2794.2,0.09864342]
[1645897437055,0.67504638,2794.5,2794.1,1.24306358]
[1645897438158,0.67504638,2794.5,2794.2,0.87541559]
[1645897438159,0.00508684,2794.4,2794.2,0.87541559]
[1645897438356,0.00508684,2794.4,2794.1,1.24306358]
[1645897438357,0.68013322,2794.4,2794.1,1.24306358]
[1645897438556,1.31182439,2794.4,2793.8,3.5]
[1645897438760,0.63169117,2794.3,2793.9,0.87531567]
[1645897439262,0.67504638,2794.4,2793.9,0.87531567]
[1645897439459,0.00508704,2794.2,2793.9,0.87531567]
[1645897439662,0.63169117,2794.1,2793.9,0.87531567]
[1645897439862,0.63169117,2794.1,2794.0,1.16638558]
[1645897440061,0.63169117,2794.1,2794.0,2.04170125]
[1645897440307,0.63169117,2794.1,2794.0,1.99170125]
[1645897440707,0.00508709,2794.2,2794.0,1.99170125]
[1645897440910,0.63169117,2794.1,2794.0,1.11638558]
[1645897441205,0.63169117,2794.1,2794.0,1.98949422]
[1645897441611,0.57504638,2794.4,2794.0,1.98949422]
[1645897441910,1.5290293,2794.6,2794.0,1.11638558]
[1645897441911,0.00508709,2794.2,2794.0,1.11638558]
[1645897442110,0.63169117,2794.1,2794.0,1.11638558]
[1645897442420,0.63169117,2794.1,2794.0,1.98944636]
[1645897442820,0.63169117,2794.5,2794.0,6.38436636]
[1645897443118,0.00508709,2794.2,2794.1,0.87306078]
[1645897443312,0.00508709,2794.2,2794.1,4.37306078]
[1645897443511,0.63677826,2794.2,2794.1,4.37306078]
[1645897443714,0.00508709,2794.2,2794.1,4.37306078]
[1645897443911,0.63169117,2794.5,2794.1,4.37306078]
[1645897444151,0.63169117,2794.2,2794.1,4.37306078]
[1645897444750,0.63169117,2794.2,2794.1,5.26789078]
[1645897444957,0.00442136,2794.3,2794.1,5.26789078]
[1645897445151,0.63169117,2794.2,2794.1,0.89483]
[1645897445353,0.63169117,2794.2,2794.1,5.26746044]
[1645897445551,0.00442136,2794.3,2794.1,5.26746044]
[1645897445752,0.63169117,2794.2,2794.1,4.39483]
[1645897445954,0.63169117,2794.2,2794.1,5.26725547]
[1645897446154,0.63169117,2794.2,2794.1,1.76725547]
[1645897446961,0.63169117,2794.2,2794.1,0.87242547]
[1645897447361,0.63169117,2794.2,2793.8,0.87242547]
[1645897447567,0.63169117,2794.2,2793.9,0.87242547]
[1645897447804,0.63169117,2794.1,2794.0,0.87242547]
[1645897448208,0.63169117,2794.2,2794.0,0.87242547]
[1645897448407,0.63169117,2794.1,2793.7,1.01933276]
[1645897448807,0.63169117,2794.2,2793.8,0.87443831]
[1645897449004,0.63169117,2794.1,2793.8,0.87443831]
[1645897450004,0.63169117,2794.0,2793.8,0.87443831]
[1645897450209,0.63169117,2793.9,2793.8,0.87443831]
[1645897450905,0.63169117,2794.0,2793.8,0.87443831]
[1645897451307,0.63169117,2793.9,2793.8,0.87443831]
[1645897452858,0.00449859,2794.0,2793.8,0.87443831]
[1645897453055,0.63169117,2793.9,2793.8,0.87443831]
[1645897453455,0.67812833,2794.4,2793.8,0.87443831]
[1645897453656,0.00449859,2794.0,2793.8,0.87443831]
[1645897453856,0.63169117,2793.9,2793.8,0.87443831]
[1645897454058,0.00449859,2794.0,2793.8,0.87443831]
[1645897454256,0.63169117,2793.9,2793.8,0.87443831]
[1645897454458,0.00449859,2794.0,2793.8,0.87443831]
[1645897454659,0.63169117,2793.9,2793.8,0.87443831]
[1645897454857,0.00449859,2794.0,2793.8,0.87443831]
[1645897455058,0.63169117,2793.9,2793.8,0.87443831]
[1645897455319,0.63169117,2793.9,2793.8,1.76945831]
[1645897455805,0.00449859,2794.0,2793.8,1.76945831]
[1645897456004,0.63169117,2793.9,2793.8,0.89502]
[1645897456304,7.9355,2794.7,2793.8,0.89502]
[1645897456305,0.0045002,2794.0,2793.8,1.7699877]
[1645897456504,0.63169117,2793.9,2793.8,0.89502]
[1645897456709,0.0045002,2794.0,2793.8,1.76986848]
[1645897456908,0.0045002,2794.0,2793.9,0.87484848]
[1645897457109,0.67812833,2794.5,2793.9,0.87484848]
[1645897457310,0.00450016,2794.0,2793.9,0.87484848]
[1645897457508,0.63656179,2794.0,2793.9,0.87484848]
[1645897457710,0.00450016,2794.0,2793.9,0.87484848]
[1645897458114,0.63656873,2794.0,2793.9,0.87484848]
[1645897458308,0.63206857,2794.0,2793.9,0.87484848]
[1645897458511,0.00450011,2794.1,2793.9,0.33064648]
[1645897458709,0.00450011,2794.1,2793.5,4.2413]
[1645897459551,0.67812833,2794.3,2793.7,1.05776669]
[1645897459755,0.00508735,2793.9,2793.7,1.05776669]
[1645897460758,0.67812833,2794.4,2793.7,1.05776669]
[1645897460954,0.00508735,2793.9,2793.7,1.05776669]
[1645897461959,0.67812833,2794.4,2793.7,1.05776669]
[1645897462159,0.00508735,2793.9,2793.7,1.05776669]
[1645897462798,0.00508735,2793.9,2793.6,0.3582]
[1645897462997,0.00508735,2793.9,2793.7,7.159]
[1645897463198,0.67812833,2794.3,2793.7,7.159]
[1645897463697,0.00508735,2793.9,2793.7,7.159]
[1645897464299,0.67812833,2794.4,2793.7,7.159]
[1645897464506,0.00508735,2793.9,2793.7,7.159]
[1645897465304,0.67812833,2794.4,2793.9,0.00075029]
[1645897465506,0.67812833,2794.5,2793.9,0.00075029]
[1645897466403,0.67812833,2794.4,2793.9,0.00075029]
[1645897467055,0.00508694,2794.3,2793.9,0.00075029]
[1645897467859,0.67812833,2794.4,2793.9,0.00075029]
[1645897468055,0.67812833,2794.5,2793.9,0.00075029]
[1645897468255,0.67812833,2794.4,2793.9,0.00075029]
[1645897468659,0.67812833,2794.5,2793.9,0.00075029]
[1645897469456,0.67812833,2794.5,2794.1,1.2567222]
[1645897469657,0.67812833,2794.6,2794.1,1.2567222]
[1645897470400,0.67812833,2794.4,2794.1,1.2567222]
[1645897471000,0.67812833,2794.4,2793.9,0.00075029]
[1645897471608,0.00350383,2794.6,2793.9,0.00075029]
[1645897471609,0.68163216,2794.6,2793.9,0.00075029]
[1645897471806,0.00508365,2794.3,2793.9,0.00075029]
[1645897472808,0.00350383,2794.5,2793.9,0.00075029]
[1645897473118,0.68163216,2794.6,2794.2,1.29597009]
[1645897473306,1.88125994,2794.7,2794.2,1.29597009]
[1645897473508,0.67812833,2794.6,2794.2,1.29597009]
[1645897473910,0.67812833,2794.6,2793.9,0.00075029]
[1645897474159,0.00473744,2794.5,2793.9,0.00075029]
[1645897474962,0.00333024,2794.5,2793.9,0.00075029]
[1645897475163,0.67812833,2794.6,2793.9,0.00075029]
[1645897475363,0.00473762,2794.3,2794.0,1.15567625]
[1645897475965,0.00473762,2794.3,2794.1,3.5]
[1645897476163,0.00473762,2794.3,2794.0,1.15567625]
[1645897476370,0.67812833,2794.5,2794.0,1.15567625]
[1645897478205,0.67812833,2794.5,2793.9,4.50075029]
[1645897478405,0.67812833,2794.5,2794.0,1.00879689]
[1645897478605,0.67812833,2794.5,2794.1,0.86569689]
[1645897479012,1.32694231,2794.4,2794.1,0.86569689]
[1645897479309,0.64373056,2794.3,2794.1,0.86569689]
[1645897479510,0.64373056,2794.2,2794.1,0.86569689]
[1645897479712,0.67812833,2794.3,2794.1,0.86569689]
[1645897480713,1.32185889,2794.2,2793.9,0.00075029]
[1645897480911,0.00508338,2794.4,2793.9,0.86669843]
[1645897480912,0.64373056,2794.1,2793.9,0.86669843]
[1645897481119,0.64373056,2794.0,2793.9,0.00075029]
[1645897481412,0.67812833,2794.3,2793.9,0.00075029]
[1645897481677,0.68163216,2794.3,2793.9,0.00075029]
[1645897481868,0.67812833,2794.3,2793.9,0.00075029]
[1645897483171,0.00508334,2794.4,2793.9,0.86674388]
[1645897483172,0.64373056,2794.2,2793.9,0.86674388]
[1645897483371,0.64373056,2794.1,2793.9,0.86674388]
[1645897483573,0.64373056,2794.0,2793.9,0.86674388]
[1645897483772,0.00350383,2794.3,2793.9,0.86674388]
[1645897483972,0.68321167,2794.4,2793.9,0.86674388]
[1645897484178,0.64373056,2794.3,2793.9,0.86674388]
[1645897484374,0.64373056,2794.2,2793.9,0.86674388]
[1645897484576,0.64373056,2794.1,2793.9,0.86674388]
[1645897484776,0.64373056,2794.0,2793.9,0.86674388]
[1645897485403,0.00350383,2794.3,2794.0,0.73839251]